[Event "RLP-ch Rapid 2024"]
[Site "Landau"]
[Date "2024.05.04"]
[Round "3.10"]
[White "Graf, Ann-Jennifer"]
[Black "Moench, Dorothee"]
[Result "1-0"]
[ECO "B07"]
[WhiteElo "1827"]
[BlackElo "1823"]
[Annotator "NA RC"]
[PlyCount "77"]
[EventDate "2024.05.03"]
[EventType "swiss"]
[EventCountry "GER"]
[SourceTitle "playchess.com"]
[Source "ChessBase"]
[SourceQuality "1"]
[TimeControl "900+5"]

1. e4 {[%emt 0:00:02]} d6 {[%emt 0:00:02]} 2. Nf3 {[%emt 0:00:09]} g6 {[%emt 0:00:08]} 3. Bc4 {[%emt 0:00:27]} Bg7 {[%emt 0:00:04]} 4. d4 {[%emt 0:00:17]} Nf6 {[%emt 0:01:05]} 5. Nbd2 {[%emt 0:01:44]} O-O {[%emt 0:00:13]} 6. c3 {[%emt 0:00:13]} Nc6 {[%emt 0:02:13]} 7. a4 {[%emt 0:00:52]} e5 {[%emt 0:00:34]} 8. d5 {[%emt 0:01:20]} Ne7 {[%emt 0:00:08]} 9. Qe2 {[%emt 0:01:09]} Nh5 {[%emt 0:00:14]} 10. Nf1 {[%emt 0:00:21]} f5 {[%emt 0:00:23]} 11. Bg5 {[%emt 0:02:55]} fxe4 {[%emt 0:00:52]} 12. Qxe4 {[%emt 0:00:14]} Bf5 {[%emt 0:00:28]} 13. Qh4 {[%emt 0:00:39]} Nf6 {[%emt 0:01:15]} 14. Nxe5 {[%emt 0:00:18]} dxe5 {[%emt 0:02:01]} 15. d6+ {[%emt 0:00:01]} Kh8 {[%emt 0:00:24]} 16. dxe7 {[%emt 0:00:02]} Qxe7 {[%emt 0:00:01]} 17. Ne3 {[%emt 0:00:08]} Be6 {[%emt 0:01:08]} 18. Nd5 {[%emt 0:00:14]} Bxd5 {[%emt 0:00:18]} 19. Bxd5 {[%emt 0:00:02]} c6 {[%emt 0:00:50]} 20. Be4 {[%emt 0:00:04]} Kg8 {[%emt 0:00:35]} 21. O-O {[%emt 0:00:17]} Qc7 {[%emt 0:00:24]} 22. Bc2 {[%emt 0:00:49]} c5 {[%emt 0:00:41]} 23. Bb3+ {[%emt 0:00:32]} Kh8 {[%emt 0:00:04]} 24. Rad1 {[%emt 0:00:14]} Rad8 {[%emt 0:00:09]} 25. Rxd8 {[%emt 0:00:24]} Qxd8 {[%emt 0:00:01]} 26. Rd1 {[%emt 0:00:03]} Qc7 {[%emt 0:00:24]} 27. Be6 {[%emt 0:00:23]} Qc6 {[%emt 0:00:32]} 28. Bb3 {[%emt 0:00:22]} Nh5 {[%emt 0:00:18]} 29. Be7 {[%emt 0:01:21]} Bf6 {[%emt 0:00:28]} 30. Bxf6+ {[%emt 0:00:16]} Nxf6 {[%emt 0:00:09]} 31. Bc2 {[%emt 0:00:14]} Kg7 {[%emt 0:00:02]} 32. Qg3 {[%emt 0:00:14]} e4 {[%emt 0:00:02]} 33. Rd6 {[%emt 0:00:08]} Qe8 {[%emt 0:00:13]} 34. Qg5 {[%emt 0:00:13]} h6 {[%emt 0:00:16]} 35. Qxc5 {[%emt 0:00:04]} Qe7 {[%emt 0:00:22]} 36. Qd4 {[%emt 0:00:14]} Kh7 {[%emt 0:00:41]} 37. h3 {[%emt 0:00:09]} b6 {[%emt 0:00:04]} 38. Bb3 {[%emt 0:00:09]} Qc7 {[%emt 0:00:19]} 39. Rxf6 {[%emt 0:00:06]} 1-0

[Event "RLP-ch Rapid 2024"]
[Site "Landau"]
[Date "2024.05.04"]
[Round "4.1"]
[White "Carow, Johannes"]
[Black "Barzen, Pascal"]
[Result "1-0"]
[ECO "E36"]
[WhiteElo "2456"]
[BlackElo "2291"]
[Annotator "TA"]
[PlyCount "171"]
[EventDate "2024.05.03"]
[EventType "swiss"]
[EventCountry "GER"]
[SourceTitle "playchess.com"]
[Source "ChessBase"]
[SourceQuality "1"]
[TimeControl "900+5"]

{[%evp 72,171,112,116,181,172,176,180,169,162,177,153,167,162,168,158,168,154,179,146,222,215,225,195,181,164,216,159,270,226,234,230,377,321,366,320,361,361,730,706,724,451,427,407,410,380,385,227,445,460,512,551,622,539,662,658,642,621,625,666,873,868,985,989,954,939,970,920,958,886,1114,1120,1052,1035,2073,1896,5214,1434,6039,1129,1061,1025,816,453,554,543,522,512,627,631,610,580,1204,1182,1107,949,1080,1059,4922,2014,29980,6089]} 1. d4 {[%emt 0:00:13]} Nf6 {[%emt 0:00:01]} 2. c4 {[%emt 0:00:05]} e6 {[%emt 0:00:01]} 3. Nc3 {[%emt 0:00:01]} Bb4 {[%emt 0:00:01]} 4. Qc2 {[%emt 0:00:02]} d5 {[%emt 0:00:03]} 5. a3 {[%emt 0:00:02]} Bxc3+ {[%emt 0:00:01]} 6. Qxc3 {[%emt 0:00:01]} O-O {[%emt 0:00:06]} 7. e3 {[%emt 0:00:45] E36: Nimzo-Indian: Classical: 4...d5 5 a3.} b6 {[%emt 0:00:11]} 8. cxd5 {[%emt 0:00:25]} exd5 {[%emt 0:00:20]} 9. Nf3 {[%emt 0:00:36]} Nbd7 {[%emt 0:00:19]} 10. Be2 {[%emt 0:02:03]} c5 {[%emt 0:00:10]} 11. O-O {[%emt 0:00:14]} Bb7 {[%emt 0:00:02]} 12. dxc5 {[%emt 0:01:24]} bxc5 {[%emt 0:00:03]} 13. b4 $146 {[%emt 0:01:54]} ({Predecessor:} 13. b3 Ne4 14. Qc2 Qb6 15. Bb2 a5 16. a4 Rfe8 17. Bb5 Bc6 18. Bxc6 Qxc6 19. Nd4 {0-1 Andrews,N-Aleksandrov,A (2609) US Open-100 Reno 1999}) 13... Ne4 {[%emt 0:00:24]} 14. Qb2 {[%emt 0:00:29]} Rb8 {[%emt 0:00:52]} 15. Rd1 {[%emt 0:00:53]} Qe7 {[%emt 0:00:15]} 16. Bd2 {[%emt 0:00:37]} Rfc8 {[%emt 0:03:25]} 17. bxc5 {[%emt 0:00:56]} Nxd2 {[%emt 0:02:21]} 18. Qxd2 {[%emt 0:00:05]} Nxc5 {[%emt 0:00:07]} 19. Nd4 {[%emt 0:00:04]} Ne4 {[%emt 0:00:36]} 20. Qa5 {[%emt 0:00:53]} Qc5 {[%emt 0:00:54]} 21. Qe1 {[%emt 0:00:22]} Qc3 {[%emt 0:00:43]} 22. Bf3 {[%emt 0:00:51]} Qxe1+ {[%emt 0:00:17]} 23. Rxe1 {[%emt 0:00:01]} Ba6 {[%emt 0:00:12]} 24. Rec1 {[%emt 0:01:09]} Kf8 {[%emt 0:00:18]} 25. Nc6 {[%emt 0:00:30]} Rb7 {[%emt 0:01:44]} 26. Nb4 {[%emt 0:00:23]} Bc4 {[%emt 0:01:07]} 27. Nxd5 {[%emt 0:00:22]} Nd2 {[%emt 0:00:38]} 28. Bd1 {[%emt 0:00:27]} Rd8 {[%emt 0:00:21]} 29. Nb4 {[%emt 0:00:33]} a5 {[%emt 0:00:09]} 30. Nc6 {[%emt 0:00:06]} Rd5 {[%emt 0:00:05]} 31. Nd4 {[%emt 0:00:23]} Rb2 {[%emt 0:00:23]} 32. Rc2 {[%emt 0:00:15]} Rxc2 {[%emt 0:00:08]} 33. Bxc2 {[%emt 0:00:01]} Ba6 {[%emt 0:00:09]} 34. Rd1 {[%emt 0:00:28]} Nc4 {[%emt 0:00:01]} 35. Bb3 {[%emt 0:00:07]} Rd6 {[%emt 0:01:10]} 36. Bxc4 {[%emt 0:00:10]} Bxc4 {[%emt 0:00:01]} 37. Rb1 {[%emt 0:00:03]} Bd3 {[%emt 0:00:02]} (37... Be6 $16 {keeps fighting.} 38. Rb5 Rd5) 38. Rb3 {[%emt 0:00:09]} Bg6 {[%emt 0:00:13]} 39. Rb8+ {[%emt 0:00:08]} Ke7 {[%emt 0:00:01]} 40. Rb7+ {[%emt 0:00:01]} Kf6 {[%emt 0:00:08]} 41. f3 {[%emt 0:00:06]} Bd3 {[%emt 0:00:06]} 42. Kf2 {[%emt 0:00:09]} h5 {[%emt 0:00:01]} 43. h4 {[%emt 0:00:06]} g6 {[%emt 0:00:03]} 44. Ra7 {[%emt 0:00:02]} Rd5 {[%emt 0:00:01]} 45. Rc7 {[%emt 0:00:04]} Rd8 {[%emt 0:00:37]} (45... Bb5 $16 {was necessary.} 46. Kg3 Be8) 46. Rc5 $18 {[%emt 0:00:03]} Ra8 {[%emt 0:00:00]} 47. e4 {[%emt 0:00:07]} a4 {[%emt 0:00:00]} 48. Ke3 {[%emt 0:00:02]} Bf1 {[%emt 0:00:00]} (48... Bb1 $142 49. Rb5 Ba2 50. Rb6+ Kg7) 49. g3 {[%emt 0:00:03]} Rb8 {[%emt 0:00:00]} (49... Ra7 $16 50. Rc6+ Kg7) 50. Rc6+ {[%emt 0:00:04]} Kg7 {[%emt 0:00:00]} 51. Rc7 {[%emt 0:00:07]} Rb2 {[%emt 0:00:01]} (51... Bb5 $142 52. Ne6+ Kg8) 52. Ra7 {[%emt 0:00:06]} Rg2 {[%emt 0:00:05]} 53. Kf4 {[%emt 0:00:02]} (53. Rxa4 Rb2 54. Ra7 Rb1 $18) 53... Rd2 {[%emt 0:00:06]} 54. Ne6+ {[%emt 0:00:03]} (54. Rxa4 Bg2 55. Ke3 Rd1 $16) 54... Kf6 $2 {[%emt 0:00:06]} (54... Kg8) 55. Ng5 $18 {[%emt 0:00:02]} Bc4 {[%emt 0:00:01]} 56. Rxa4 {[%emt 0:00:05]} Bb3 {[%emt 0:00:07]} 57. Ra6+ {[%emt 0:00:04]} Ke7 {[%emt 0:00:02]} 58. Rb6 {[%emt 0:00:06]} Bc4 {[%emt 0:00:02]} 59. Ke5 {[%emt 0:00:13]} (59. Rb7+ $142 Kf8 60. a4) 59... Rd3 $2 {[%emt 0:00:10]} (59... Rd7 {was called for.} 60. Nh7 Ra7) 60. Rb7+ $18 {[%emt 0:00:04]} Ke8 {[%emt 0:00:00]} 61. a4 {[%emt 0:00:11]} Ra3 {[%emt 0:00:06]} 62. Kf6 {[%emt 0:00:04]} Rxa4 {[%emt 0:00:06]} 63. Nxf7 {[%emt 0:00:06]} Ra6+ {[%emt 0:00:30]} 64. Kg7 {[%emt 0:00:01]} Be2 {[%emt 0:00:03]} 65. Ng5 {[%emt 0:00:06]} Rc6 {[%emt 0:00:07]} 66. Rf7 {[%emt 0:00:04]} Bd1 {[%emt 0:00:02]} 67. Rf6 {[%emt 0:00:04]} Rc2 {[%emt 0:00:02]} 68. Rxg6 {[%emt 0:00:09]} Rg2 {[%emt 0:00:02]} 69. Kh6 {[%emt 0:00:07]} Rxg3 {[%emt 0:00:04]} 70. Rf6 {[%emt 0:00:01]} (70. Kxh5 Bxf3+ 71. Kh6 Bd1 $18) 70... Ke7 {[%emt 0:00:06]} 71. Rf7+ {[%emt 0:00:02]} Ke8 {[%emt 0:00:00]} 72. Rf4 {[%emt 0:00:02]} (72. Kxh5 Rxg5+ 73. Kxg5 Kxf7 $11) 72... Bb3 {[%emt 0:00:18]} 73. Kxh5 {[%emt 0:00:03]} Ke7 {[%emt 0:00:14]} 74. Kg6 {[%emt 0:00:04]} Ba4 {[%emt 0:00:00]} 75. Kf5 {[%emt 0:00:08]} Rg1 {[%emt 0:00:00]} 76. Ke5 {[%emt 0:00:03]} Be8 {[%emt 0:00:00]} 77. Kd4 {[%emt 0:00:05]} Rd1+ {[%emt 0:00:00]} 78. Ke3 {[%emt 0:00:01]} Rh1 {[%emt 0:00:00]} 79. Kf2 {[%emt 0:00:02]} Bh5 {[%emt 0:00:01]} 80. Kg2 {[%emt 0:00:02]} Ra1 {[%emt 0:00:02]} 81. Nh3 {[%emt 0:00:05]} Ke6 {[%emt 0:00:02]} 82. Rf5 {[%emt 0:00:04]} Be8 {[%emt 0:00:03]} 83. h5 {[%emt 0:00:02]} Ke7 {[%emt 0:00:08]} 84. Nf4 {[%emt 0:00:03]} Bd7 {[%emt 0:00:02]} 85. Ng6+ {[%emt 0:00:06]} Ke6 {[%emt 0:00:02]} 86. Nf8+ {[%emt 0:00:06]} (86. h6 $142 Kd6 87. Rf6+ Kc5 88. h7 Ra8 89. Nf8 (89. h8=R Ra7 $18) (89. h8=Q Rxh8 90. Nxh8 Be8 $18) (89. h8=N Be8 $18) (89. h8=B Rg8 $18) 89... Re8 90. h8=Q (90. h8=R Kd4 $18) 90... Kc4 91. Rb6 (91. Qg8+ Kc3 92. Qd5 Rb8 93. Nxd7 Rb2+ 94. Kg3 Rc2 95. Rb6 Rg2+ 96. Kxg2 Kc2 97. Rc6+ Kb1 98. Qb3+ Ka1 99. Rc1#)) 1-0

[Event "RLP-ch Rapid 2024"]
[Site "Landau"]
[Date "2024.05.04"]
[Round "4.2"]
[White "Lang, Torsten"]
[Black "Frischmann, Rick"]
[Result "0-1"]
[ECO "A48"]
[WhiteElo "2299"]
[BlackElo "2355"]
[Annotator "TA"]
[PlyCount "113"]
[EventDate "2024.05.03"]
[EventType "swiss"]
[EventCountry "GER"]
[SourceTitle "playchess.com"]
[Source "ChessBase"]
[SourceQuality "1"]
[TimeControl "900+5"]

{[%evp 24,113,129,94,100,69,66,71,66,0,78,29,64,85,153,169,161,119,182,185,243,230,279,118,140,72,141,24,58,-14,-10,-229,-84,-63,-59,-337,-343,-338,-147,-401,-416,-400,-60,-270,-280,-274,-282,-1748,-1706,-2043,-759,-1562,-892,-888,-875,-857,-804,-856,-635,-1159,-198,-187,-8,0,-11,-17,0,0,0,-24,20,0,73,26,165,-29,-14,-19,-15,-39,0,0,0,-593,-609,-657,-652,-1612,-1341,-5565,-5165,-1520]} 1. d4 {[%emt 0:00:03]} Nf6 {[%emt 0:00:04]} 2. Nf3 {[%emt 0:00:03]} g6 {[%emt 0:00:02]} 3. Bf4 {[%emt 0:00:06]} Bg7 {[%emt 0:00:03]} 4. e3 {[%emt 0:00:02]} O-O {[%emt 0:00:03]} 5. Be2 {[%emt 0:00:04]} d6 {[%emt 0:00:04]} 6. h3 {[%emt 0:00:03]} Nbd7 {[%emt 0:00:05]} 7. O-O {[%emt 0:00:08]} Qe8 {[%emt 0:00:03]} 8. c4 {[%emt 0:00:21]} e5 {[%emt 0:00:04]} 9. Bh2 {[%emt 0:00:03]} e4 {[%emt 0:01:06]} 10. Nfd2 {[%emt 0:00:03]} Qe7 {[%emt 0:00:01]} 11. Nc3 {[%emt 0:00:03]} Re8 {[%emt 0:00:07] A48: 1 d4 Nf6 2 Nf3 g6: Torre, London and Colle Systems.} 12. Qc2 {[%emt 0:00:29]} Nf8 {[%emt 0:00:16]} 13. b4 {[%emt 0:00:32]} h5 {[%emt 0:00:23]} 14. Nd5 $146 {[%emt 0:00:20]} ({Predecessor:} 14. c5 d5 15. Qb3 Be6 16. a4 Bh6 17. a5 Rec8 18. Rfc1 N8h7 19. a6 b6 20. Nb5 {1-0 Danner,G (2405)-Znamenacek,K (2300) Prague Bohemians 1987}) 14... Nxd5 {[%emt 0:00:09]} 15. cxd5 {[%emt 0:00:02]} Bf5 {[%emt 0:00:04]} 16. Rfc1 {[%emt 0:00:30]} (16. Rac1 $14 Rac8 17. Nb3) 16... Rac8 {[%emt 0:00:54]} (16... Bxd4 $1 $11 17. Rab1 (17. exd4 e3 $14) 17... Be5) 17. Nb3 {[%emt 0:01:54]} (17. Qb3 $16) 17... Nh7 {[%emt 0:05:13]} 18. Na5 {[%emt 0:00:21]} Qg5 {[%emt 0:01:24]} (18... Bd7 $142) 19. Bf4 $16 {[%emt 0:01:44]} (19. Nxb7 Bxh3 20. Bf1 Bd7 $15) 19... Qf6 {[%emt 0:00:25]} 20. Nxb7 {[%emt 0:00:37]} g5 {[%emt 0:00:01]} (20... Bd7 $16) 21. Bh2 $18 {[%emt 0:00:07]} g4 {[%emt 0:00:38]} (21... Qg6 $142 22. Qa4 Nf6) 22. hxg4 $1 $18 {[%emt 0:00:26]} hxg4 {[%emt 0:00:02]} 23. Qd1 {[%emt 0:00:09]} (23. Qa4 $18) 23... Qg5 $16 {[%emt 0:01:21]} 24. Na5 {[%emt 0:01:34]} (24. Bb5 $142 $1 {[%cal Rb5e8]} Rf8 25. Ba6) 24... Qh5 {[%emt 0:00:01]} (24... Nf6 $142) 25. Bf4 {[%emt 0:00:48]} (25. Bb5 $16) 25... Bf6 {[%emt 0:00:02]} 26. g3 {[%emt 0:01:07]} (26. Ba6 $14) 26... Kg7 $11 {[%emt 0:00:10]} 27. Bf1 $2 {[%emt 0:00:02]} (27. Bc4 $11) 27... Rh8 {[%emt 0:00:09]} (27... Bg5 $1 $19 {Strongly threatening ...Bxf4.} 28. Nc4 Rh8) 28. Bg2 $17 {[%emt 0:00:02]} (28. Nc6 $2 Ng5 29. Bg2 Qh2+ 30. Kf1 Nf3 31. Bxf3 exf3 $19) 28... Bg5 $1 {[%emt 0:00:37]} 29. Qb3 $2 {[%emt 0:02:20][%mdl 8192]} (29. Nc4 $1 $15) 29... Bxf4 $19 {[%emt 0:00:10]} 30. exf4 {[%emt 0:00:01]} Nf6 {[%emt 0:00:04]} (30... e3 $19 {and Black stays clearly on top.} 31. Nc6 (31. fxe3 $2 Nf6 $19) (31. Qxe3 $2 Rce8 $19) 31... Ng5 32. Qxe3 Nf3+ 33. Kf1 Rce8) 31. Nc6 $2 {[%emt 0:00:07][%mdl 8192]} (31. Rc3 $17) 31... Rce8 $19 {[%emt 0:00:07]} 32. Re1 {[%emt 0:01:01]} Qh2+ {[%emt 0:00:13]} 33. Kf1 {[%emt 0:00:02]} e3 $1 {[%emt 0:00:24]} 34. Rxe3 {[%emt 0:00:04]} Be4 {[%emt 0:00:06]} 35. Bxe4 $2 {[%emt 0:00:31]} (35. Rxe4 Nxe4 (35... Rxe4 36. Qd1 $15) 36. Qd3) 35... Nxe4 $19 {[%emt 0:00:01]} 36. Qb2 {[%emt 0:01:14]} Qh1+ {[%emt 0:00:04]} 37. Ke2 {[%emt 0:00:02]} Nxg3+ {[%emt 0:00:03]} 38. Kd3 {[%emt 0:00:07]} Rxe3+ {[%emt 0:00:04]} (38... Qxd5 39. Rxg3 Qb5+ (39... Qxc6 $2 {too greedy.} 40. d5+ f6 41. Rxg4+ Kf7 42. dxc6 $18) 40. Kc3 Qxc6+ 41. Kb3 Qd5+ 42. Ka4 $17) 39. fxe3 {[%emt 0:00:11]} Qe4+ {[%emt 0:00:15]} 40. Kc4 {[%emt 0:00:03]} Rh5 {[%emt 0:00:03]} 41. Ne5 {[%emt 0:00:34]} Nf5 $2 {[%emt 0:00:19]} (41... dxe5 42. fxe5 Rxe5 (42... Qxe3 $2 43. Qc3 $19)) 42. Nxg4 $19 {[%emt 0:00:20] [#]} Ne7 $2 {[%emt 0:00:13]} (42... Nxe3+ 43. Nxe3 Qxe3 44. Qg2+ Kf8 45. Rg1 $11) ({Black should try} 42... Ng3 $1 $19 43. Kb5 Qf3 (43... Qxd5+ 44. Ka4 $17)) 43. Rg1 $11 {[%emt 0:00:06]} Qxd5+ {[%emt 0:00:15]} 44. Kc3 {[%emt 0:00:08]} Qc6+ {[%emt 0:00:02]} 45. Kb3 {[%emt 0:00:04]} Qd5+ {[%emt 0:00:24]} 46. Kc3 {[%emt 0:00:01]} Ng6 {[%emt 0:00:12]} 47. Qg2 {[%emt 0:00:05]} Qe6 {[%emt 0:00:56]} (47... Qb5 $1 $11 {remains equal.}) 48. a3 {[%emt 0:00:11]} ({White should play} 48. a4 $16) 48... c5 {[%emt 0:00:02] [#]} (48... Kf8 $11) 49. Qd2 $2 {[%emt 0:00:08]} (49. dxc5 $1 $18 dxc5 50. Qc2) 49... cxb4+ $11 {[%emt 0:00:14]} 50. axb4 {[%emt 0:00:01]} a5 {[%emt 0:00:10]} 51. Kb2 {[%emt 0:00:09]} (51. Qb2 {feels hotter.} axb4+ 52. Qxb4 Qd5 53. Qc4) 51... axb4 {[%emt 0:00:12]} 52. Qxb4 {[%emt 0:00:02]} Qd7 {[%emt 0:00:17]} 53. d5 $2 {[%emt 0:00:08][%mdl 8192]} (53. Qc3 $11 {and White is okay.}) 53... Rxd5 $19 {[%emt 0:00:17]} 54. Qc3+ {[%emt 0:00:01]} Kf8 {[%emt 0:00:00]} 55. Nf6 {[%emt 0:00:09]} Qb5+ {[%emt 0:00:01]} 56. Ka1 {[%emt 0:00:12]} Qa4+ {[%emt 0:01:06]} 57. Kb2 {[%emt 0:00:05]} 0-1

[Event "RLP-ch Rapid 2024"]
[Site "Landau"]
[Date "2024.05.04"]
[Round "4.3"]
[White "Bruch, Jochen"]
[Black "Boder, Jan"]
[Result "0-1"]
[ECO "A37"]
[WhiteElo "2181"]
[BlackElo "2318"]
[Annotator "TA"]
[PlyCount "68"]
[EventDate "2024.05.03"]
[EventType "swiss"]
[EventCountry "GER"]
[SourceTitle "playchess.com"]
[Source "ChessBase"]
[SourceQuality "1"]
[TimeControl "900+5"]

{[%evp 20,68,-6,-20,-9,0,-15,-15,-7,-7,-13,-22,-9,-52,-52,-59,-55,-72,-70,-76,-77,-168,-164,-254,-239,-278,-272,-260,-260,-243,-252,-257,-250,-537,-512,-640,-611,-785,-808,-808,-805,-757,-806,-823,-820,-814,-827,-879,-862,-975,-975]} 1. Nf3 {[%emt 0:00:01]} c5 {[%emt 0:00:04]} 2. g3 {[%emt 0:00:02]} g6 {[%emt 0:00:03]} 3. c4 {[%emt 0:00:02]} Bg7 {[%emt 0:00:01]} 4. Bg2 {[%emt 0:00:01]} Nc6 {[%emt 0:00:01]} 5. O-O {[%emt 0:00:02]} e5 {[%emt 0:00:15]} 6. Nc3 {[%emt 0:00:02]} d6 {[%emt 0:00:02]} 7. a3 {[%emt 0:00:02]} Nge7 {[%emt 0:00:04]} 8. Rb1 {[%emt 0:00:01]} a5 {[%emt 0:00:01]} 9. d3 {[%emt 0:00:02]} O-O {[%emt 0:00:03]} 10. Nd5 {[%emt 0:00:02]} Rb8 {[%emt 0:00:18]} 11. Bd2 {[%emt 0:00:27]} Nxd5 {[%emt 0:00:37]} 12. cxd5 {[%emt 0:00:02]} Ne7 {[%emt 0:00:01]} 13. e4 {[%emt 0:00:01]} b5 {[%emt 0:00:04] The position is equal.} 14. b4 {[%emt 0:00:02]} cxb4 {[%emt 0:00:09]} 15. axb4 {[%emt 0:00:01]} a4 {[%emt 0:00:01]} 16. Bc3 {[%emt 0:00:01]} f5 {[%emt 0:00:20]} 17. Qe2 {[%emt 0:00:20]} h6 {[%emt 0:00:57]} 18. Rbc1 {[%emt 0:00:08]} g5 {[%emt 0:00:21] Black continues to play with concentration.} 19. Nd2 {[%emt 0:00:41]} f4 {[%emt 0:00:23]} 20. f3 {[%emt 0:00:21]} (20. h3 $17 {keeps fighting.}) 20... h5 $19 {[%emt 0:00:22]} 21. Qf2 {[%emt 0:00:04]} (21. Rf2 {is a better defense.}) 21... Ng6 {[%emt 0:00:20]} 22. Nb1 {[%emt 0:01:53]} fxg3 {[%emt 0:00:08]} 23. hxg3 {[%emt 0:00:02]} h4 {[%emt 0:00:01]} 24. Bd2 {[%emt 0:00:02]} g4 {[%emt 0:01:54]} 25. gxh4 {[%emt 0:00:19]} gxf3 {[%emt 0:00:30]} (25... Nxh4 26. Qg3 Ng6 27. fxg4 $19) (25... Qxh4 26. Qxh4 Nxh4 27. fxg4 $15) 26. Bg5 $2 {[%emt 0:00:52] [#]} (26. Bxf3 {was forced.} Bh3 (26... Qxh4 27. Qxh4 Nxh4 28. Bh5 $16) (26... Nxh4 27. Qg3 $17) 27. Qg3 (27. Bg5 $2 Bf6 $19) 27... Bxf1 28. Rxf1) 26... fxg2 $1 {[%emt 0:00:47] Black is clearly winning.} 27. Bxd8 {[%emt 0:00:07]} (27. Qxg2 Qb6+) 27... gxf1=Q+ {[%emt 0:00:28]} 28. Qxf1 {[%emt 0:00:37]} Rxf1+ {[%emt 0:00:04]} 29. Rxf1 {[%emt 0:00:02]} Bh3 {[%emt 0:00:03][%csl LRd8,LRf1]} 30. Rf3 {[%emt 0:00:54]} Rxd8 {[%emt 0:00:09]} 31. Rxh3 {[%emt 0:00:01]} Rc8 {[%emt 0:00:01] [#] And now ...Rc1+ would win.} 32. Na3 {[%emt 0:00:03]} Nf4 {[%emt 0:00:07]} 33. Rf3 {[%emt 0:00:08]} Ne2+ {[%emt 0:00:09]} 34. Kf2 {[%emt 0:00:04]} Nd4 {[%emt 0:00:02] Weighted Error Value: White=0.62/Black=0.00 (flawless) .  Mistake:       	White=3     	---        Inaccurate:     	White=1     	---        OK:         	White=3     	Black=11     Best:        	---       	Black=2} 0-1